bitfinex/quotes_SOLUSD_20241121
["timestamp","ask_amount","ask_price","bid_price","bid_amount"]
[1732215391284,160.6,258.8,258.75,11.64258589]
[1732215391599,160.6,258.8,258.7,11.64258589]
[1732215391782,160.6,258.8,258.79,11.64258589]
[1732215391983,160.6,258.84,258.79,11.64258589]
[1732215392178,160.6,258.84,258.81,11.64258589]
[1732215392579,3.8635,258.83,258.79,11.64258589]
[1732215392996,160.6,258.84,258.81,11.64258589]
[1732215392997,164.4634,258.84,258.81,11.64258589]
[1732215393185,160.6,258.83,258.65,20.0]
[1732215393393,160.6,258.82,258.8,11.64258589]
[1732215393587,160.6,258.81,258.78,11.64258589]
[1732215393810,160.6,258.81,258.76,11.64258589]
[1732215394614,3.8641,258.79,258.76,11.64258589]
[1732215395506,160.6,258.78,258.76,11.64258589]
[1732215397108,27.641284,258.77,258.74,11.64258589]
[1732215397288,23.776884,258.75,258.74,11.64258589]
[1732215398784,23.776884,258.75,258.64,12.1373]
[1732215398785,23.776884,258.76,258.73,11.64258589]
[1732215399097,23.776884,258.74,258.71,11.64258589]
[1732215399597,23.776884,258.74,258.69,11.64258589]
[1732215399780,23.776884,258.74,258.67,11.64258589]
[1732215399982,23.776884,258.74,258.57,55.66898589]
[1732215399983,23.776884,258.74,258.69,11.64258589]
[1732215400406,11.64258589,258.73,258.65,11.64258589]
[1732215400600,23.776884,258.72,258.65,11.64258589]
[1732215401113,23.776884,258.7,258.65,11.64258589]
[1732215401807,3.8653,258.71,258.65,11.64258589]
[1732215402702,2.14899471,258.76,258.69,11.64258589]
[1732215402909,9.6601,258.8,258.69,11.64258589]
[1732215402910,11.64258589,258.79,258.69,11.64258589]
[1732215403227,3.8645,258.76,258.69,11.64258589]
[1732215403795,160.6,258.75,258.69,11.64258589]
[1732215404109,160.6,258.74,258.73,11.64258589]
[1732215404402,3.8642,258.79,258.73,11.64258589]
[1732215404716,3.8642,258.79,258.63,8.47825963]
[1732215404717,11.64258589,258.88,258.77,11.64258589]
[1732215405010,11.64258589,258.88,258.79,11.64258589]
[1732215405310,3.8629,258.87,258.79,11.64258589]
[1732215405510,15.50538589,258.88,258.79,11.64258589]
[1732215406510,11.64258589,258.81,258.66,31.3799]
[1732215406697,11.64258589,258.78,258.7,11.64258589]
[1732215407200,3.8644,258.77,258.7,11.64258589]
[1732215407510,23.776884,258.76,258.7,11.64258589]
[1732215408010,23.776884,258.76,258.72,11.64258589]
[1732215408401,160.6,258.75,258.72,11.64258589]
[1732215408922,160.6,258.75,258.74,11.64258589]
[1732215409588,164.4647,258.75,258.7,11.64258589]
[1732215409788,160.6,258.74,258.7,11.64258589]
[1732215410213,23.776884,258.73,258.72,11.64258589]
[1732215410417,23.776884,258.73,258.66,31.3799]
[1732215410418,23.776884,258.73,258.7,11.64258589]
[1732215410594,160.6,258.81,258.72,11.64258589]
[1732215410915,3.8621,258.92,258.8,11.64258589]
[1732215411097,172.24258589,258.91,258.82,11.64258589]
[1732215411417,11.64258589,258.87,258.78,11.64258589]
[1732215411612,160.6,258.91,258.78,11.64258589]
[1732215411613,11.64258589,258.85,258.78,11.64258589]
[1732215411813,160.6,258.84,258.76,11.64258589]
[1732215412418,160.6,258.89,258.78,11.64258589]
[1732215412622,160.6,258.88,258.81,11.64258589]
[1732215412827,160.6,258.88,258.7,21.00598951]
[1732215412828,160.6,258.88,258.7,23.50598951]
[1732215413126,160.6,258.87,258.83,11.64258589]
[1732215413297,160.6,258.86,258.83,11.64258589]
[1732215413690,2.15201397,258.94,258.81,31.8525]
[1732215413691,160.6,258.85,258.81,31.8525]
[1732215413892,160.6,258.93,258.84,11.64258589]
[1732215414109,160.6,258.92,258.86,11.64258589]
[1732215414313,160.6,258.98,258.83,11.64258589]
[1732215414499,160.6,258.98,258.92,11.64258589]
[1732215414695,160.6,258.97,258.92,11.64258589]
[1732215416090,160.6,258.97,258.94,11.64258589]
[1732215416692,160.6,258.97,258.93,18.58210236]
[1732215417310,160.6,258.97,258.91,18.58210236]
[1732215418189,160.6,258.97,258.93,18.58210236]
[1732215418393,202.95898636,258.96,258.81,31.8525]
[1732215418594,23.776884,258.94,258.87,18.58210236]
[1732215418899,23.776884,258.92,258.85,18.58210236]
[1732215419509,23.776884,258.9,258.83,18.58210236]
[1732215420509,3.8626,258.89,258.83,18.58210236]
[1732215420911,3.8626,258.89,258.81,50.43460236]
[1732215421098,184.376884,258.88,258.81,18.58210236]
[1732215421319,160.6,258.88,258.81,18.58210236]
[1732215421618,160.6,258.88,258.75,5.97825963]
[1732215421619,23.776884,258.86,258.77,18.58210236]
[1732215421820,23.776884,258.83,258.75,18.58210236]
[1732215422024,160.6,258.82,258.79,18.58210236]
[1732215423312,160.6,258.82,258.81,18.58210236]
[1732215423516,160.6,258.85,258.81,18.58210236]
[1732215423718,160.6,258.85,258.79,18.58210236]
[1732215424302,160.6,258.85,258.81,18.58210236]
[1732215425019,160.6,258.88,258.83,18.58210236]
[1732215425213,160.6,258.9,258.85,18.58210236]
[1732215425710,22.44410236,258.93,258.85,18.58210236]
[1732215425711,160.6,258.92,258.85,18.58210236]
[1732215426023,2.11919155,258.93,258.85,18.58210236]
[1732215426316,22.44390236,258.95,258.78,2.5]
[1732215426317,22.44390236,258.95,258.87,18.58210236]
[1732215426623,160.6,258.94,258.87,18.58210236]
[1732215426825,164.4619,258.94,258.87,18.58210236]
[1732215427002,164.4619,258.94,258.85,18.58210236]
[1732215427417,184.376884,258.93,258.85,18.58210236]
[1732215427621,23.776884,258.85,258.73,13.1942]
[1732215427807,43.776884,258.91,258.73,13.1942]
[1732215427808,18.58210236,258.81,258.73,13.1942]
[1732215428715,18.58210236,258.79,258.7,25.44550598]
[1732215428919,18.58210236,258.76,258.7,6.86340362]
[1732215429237,160.6,258.78,258.7,6.86340362]
[1732215429398,18.58210236,258.76,258.7,6.86340362]
[1732215429815,18.58210236,258.74,258.7,6.86340362]
[1732215430133,23.776884,258.77,258.7,6.86340362]
[1732215430422,18.58210236,258.74,258.7,6.86340362]
[1732215430608,27.642184,258.71,258.59,32.3027]
[1732215430805,18.58210236,258.63,258.59,32.3027]
[1732215431628,18.58210236,258.63,258.52,18.58210236]
[1732215431926,18.58210236,258.63,258.51,32.3027]
[1732215431927,18.58210236,258.58,258.51,32.3027]
[1732215432102,18.58210236,258.56,258.51,32.3027]
[1732215432304,18.58210236,258.52,258.44,18.58210236]
[1732215432507,18.58210236,258.52,258.42,18.58210236]
[1732215432720,18.58210236,258.52,258.42,18.08210236]
[1732215433267,18.58210236,258.5,258.4,62.94890236]
[1732215433409,18.58210236,258.5,258.41,0.88453012]
[1732215433921,18.58210236,258.48,258.41,0.88453012]
[1732215434113,18.58210236,258.46,258.41,0.88453012]
[1732215434309,18.58210236,258.44,258.41,0.88453012]
[1732215434836,18.58210236,258.42,258.41,0.88453012]
[1732215435203,18.58210236,258.44,258.41,0.88453012]
[1732215436004,18.58210236,258.42,258.41,0.88453012]
[1732215436417,18.58210236,258.42,258.32,18.58210236]
[1732215436909,18.58210236,258.4,258.32,18.58210236]
[1732215437113,18.58210236,258.4,258.26,2.5]
[1732215437114,23.776884,258.43,258.34,18.58210236]
[1732215437314,18.58210236,258.42,258.34,18.58210236]
[1732215437527,18.58210236,258.42,258.28,12.38444006]
[1732215437528,23.776884,258.41,258.32,18.58210236]
[1732215437809,18.58210236,258.42,258.32,18.58210236]
[1732215438538,3.8694,258.44,258.28,12.38444006]
[1732215438539,18.58210236,258.44,258.34,18.58210236]
[1732215439030,165.27924189,258.54,258.4,18.58210236]
[1732215439031,18.58210236,258.48,258.4,18.58210236]
[1732215439235,18.58210236,258.46,258.38,18.58210236]
[1732215440414,18.58210236,258.4,258.32,18.58210236]
[1732215440622,18.58210236,258.4,258.3,18.58210236]
[1732215440934,160.6,258.44,258.3,18.58210236]
[1732215440935,18.58210236,258.38,258.3,18.58210236]
[1732215441431,18.58210236,258.38,258.31,18.58210236]
[1732215441621,23.776884,258.35,258.28,9.88444006]
[1732215441819,23.776884,258.35,258.29,18.58210236]
[1732215442022,42.35898636,258.36,258.28,9.88444006]
[1732215442210,160.6,258.37,258.29,18.58210236]
[1732215442411,160.6,258.37,258.31,18.58210236]
[1732215442950,23.776884,258.36,258.29,18.58210236]
[1732215443141,42.35898636,258.36,258.28,9.88444006]
[1732215443344,18.58210236,258.3,258.21,18.58210236]
[1732215443642,23.776884,258.36,258.14,46.2974]
[1732215443643,42.35898636,258.28,258.19,18.58210236]
[1732215444136,2.5,258.36,258.14,43.7974]
[1732215444137,23.776884,258.23,258.17,18.58210236]
[1732215444325,184.376884,258.23,258.14,18.58210236]
[1732215445237,23.776884,258.21,258.14,18.58210236]
[1732215445437,160.6,258.22,258.14,18.58210236]
[1732215445616,160.6,258.27,258.2,18.58210236]
[1732215445816,183.05320236,258.32,258.22,18.58210236]
[1732215446142,22.45350236,258.3,258.22,18.58210236]
[1732215446836,160.6,258.29,258.22,18.58210236]
[1732215447021,202.95898636,258.28,258.18,18.58210236]
[1732215447435,23.776884,258.26,258.18,18.58210236]
[1732215447741,184.376884,258.26,258.18,18.58210236]
[1732215448261,23.776884,258.24,258.16,18.58210236]
[1732215448438,160.6,258.23,258.16,18.58210236]
[1732215448938,160.6,258.23,258.07,12.8526]
[1732215448939,160.6,258.23,258.18,18.58210236]
[1732215449141,160.6,258.23,258.07,12.8526]
[1732215449142,160.6,258.23,258.22,18.58210236]
[1732215449546,3.871,258.33,258.22,18.58210236]
[1732215449724,3.871,258.33,258.26,18.58210236]
[1732215450125,3.871,258.33,258.18,18.58210236]
[1732215450126,3.871,258.33,258.24,18.58210236]
[1732215450333,18.58210236,258.32,258.24,18.58210236]
[1732215450635,3.871,258.33,258.24,18.58210236]
[1732215450814,3.871,258.33,258.18,18.58210236]
[1732215450815,160.6,258.32,258.26,18.58210236]
[1732215451017,164.47,258.4,258.3,18.58210236]
[1732215451217,22.45210236,258.4,258.3,18.58210236]
[1732215451616,18.58210236,258.38,258.3,18.58210236]
[1732215452030,3.8704,258.37,258.28,18.58210236]
[1732215452232,23.776884,258.36,258.28,18.58210236]
[1732215452840,23.776884,258.34,258.26,18.58210236]
[1732215453044,23.776884,258.32,258.26,18.58210236]
[1732215454234,160.6,258.33,258.28,18.58210236]
[1732215456151,42.35898636,258.34,258.24,18.58210236]
[1732215456326,23.776884,258.34,258.24,18.58210236]
[1732215456835,18.58210236,258.33,258.24,18.58210236]
[1732215457035,3.8713,258.31,258.24,18.58210236]
[1732215458728,22.45340236,258.31,258.22,18.58210236]
[1732215458938,183.05340236,258.31,258.22,18.58210236]
[1732215459531,23.776884,258.3,258.22,18.58210236]
[1732215460236,183.05340236,258.31,258.22,18.58210236]
[1732215460422,164.4713,258.31,258.24,18.58210236]
[1732215461025,160.6,258.31,258.24,18.58210236]
[1732215461938,164.4712,258.32,258.24,18.58210236]
[1732215463949,18.58210236,258.29,258.2,18.58210236]
[1732215464134,18.58210236,258.27,258.18,18.58210236]
[1732215464523,23.776884,258.26,258.18,18.58210236]
[1732215464825,23.776884,258.24,258.16,18.58210236]
[1732215465431,23.776884,258.22,258.16,18.58210236]
[1732215465633,23.776884,258.2,258.14,18.58210236]
[1732215465827,184.376884,258.2,258.14,18.58210236]
[1732215466033,160.6,258.22,258.16,18.58210236]
[1732215466331,160.6,258.22,258.18,18.58210236]
[1732215466755,160.6,258.22,258.2,18.58210236]
[1732215467744,160.6,258.22,258.18,18.58210236]
[1732215468339,160.6,258.22,258.14,18.58210236]
[1732215468340,23.776884,258.21,258.14,18.58210236]
[1732215469238,42.35898636,258.21,258.12,18.58210236]
[1732215469425,23.776884,258.18,258.1,18.58210236]
[1732215469827,18.58210236,258.21,258.12,18.58210236]
[1732215470024,23.776884,258.21,258.14,18.58210236]
[1732215470247,160.6,258.22,258.16,18.58210236]
[1732215470450,160.6,258.23,258.16,18.58210236]
[1732215470856,160.6,258.24,258.16,18.58210236]
[1732215471662,164.4724,258.24,258.16,18.58210236]
[1732215471864,18.58210236,258.23,258.14,18.58210236]
[1732215472147,23.776884,258.2,258.12,18.58210236]
[1732215472527,27.649784,258.2,258.12,18.58210236]
[1732215473344,23.776884,258.18,258.1,18.58210236]
[1732215473545,184.376884,258.18,258.1,18.58210236]
[1732215473951,23.776884,258.16,258.07,32.1875]
[1732215474155,23.776884,258.16,258.04,13.0064]
[1732215474338,18.58210236,258.13,258.05,18.58210236]
[1732215474655,160.6,258.12,258.05,18.58210236]
[1732215475268,23.776884,258.11,258.05,18.58210236]
[1732215475559,184.376884,258.11,258.05,18.58210236]
[1732215475735,184.376884,258.11,258.03,18.58210236]
[1732215476053,160.6,258.12,258.03,18.58210236]
[1732215476435,23.776884,258.11,258.03,18.58210236]
[1732215477262,184.376884,258.11,258.03,18.58210236]
[1732215478154,160.6,258.14,258.09,18.58210236]
[1732215478365,160.6,258.14,258.12,18.58210236]
[1732215478541,160.6,258.2,258.12,18.58210236]
[1732215478857,160.6,258.19,258.12,11.68615999]
[1732215479065,160.6,258.19,258.14,11.68615999]
[1732215480061,160.6,258.19,258.12,11.68615999]
[1732215480235,23.776884,258.18,258.12,11.68615999]
[1732215481060,160.6,258.23,258.16,11.68615999]
[1732215481358,176.15865999,258.23,258.14,11.68615999]
[1732215481735,176.15865999,258.23,258.12,11.68615999]
[1732215482335,23.776884,258.22,258.14,11.68615999]
[1732215485234,23.776884,258.22,258.05,14.18615999]
[1732215485235,23.776884,258.22,258.18,11.68615999]
[1732215485439,160.6,258.21,258.18,11.68615999]
[1732215485669,23.776884,258.2,258.16,11.68615999]
[1732215486165,23.776884,258.2,258.14,11.68615999]
[1732215486368,23.776884,258.2,258.05,11.68615999]
[1732215486369,23.776884,258.2,258.16,11.68615999]
[1732215487666,23.776884,258.2,258.14,11.68615999]
[1732215488066,160.6,258.21,258.01,41.80636629]
[1732215488067,23.776884,258.18,258.1,11.68615999]
[1732215488249,172.28615999,258.17,258.07,11.68615999]
[1732215488444,23.776884,258.14,258.05,11.68615999]
[1732215489064,23.776884,258.12,258.05,11.68615999]
[1732215489269,23.776884,258.1,258.05,11.68615999]
[1732215489757,23.776884,258.1,258.03,11.68615999]
[1732215490553,27.651384,258.1,258.03,11.68615999]
[1732215490949,23.776884,258.1,258.05,11.68615999]
[1732215491561,160.6,258.11,258.07,11.68615999]
[1732215492063,160.6,258.16,258.07,11.68615999]
[1732215492268,11.68615999,258.12,258.02,11.68615999]
[1732215492468,11.68615999,258.1,258.02,11.68615999]
[1732215492645,11.68615999,258.08,258.01,9.05646629]
[1732215492844,23.776884,258.07,258.01,9.05646629]
[1732215493060,23.776884,258.08,258.01,20.74262628]
[1732215493266,160.6,258.09,258.05,11.68615999]
[1732215493444,160.6,258.09,258.07,11.68615999]
[1732215493849,160.6,258.14,258.07,11.68615999]
[1732215494056,160.6,258.14,258.09,11.68615999]
[1732215495270,23.776884,258.13,258.09,11.68615999]
[1732215495571,160.6,258.14,258.11,11.68615999]
[1732215495746,160.6,258.18,258.11,11.68615999]
[1732215496164,160.6,258.17,258.13,11.68615999]
[1732215496573,160.6,258.17,258.16,11.68615999]
[1732215496746,160.6,258.17,258.06,12.3699]
[1732215496747,160.6,258.17,258.14,11.68615999]
[1732215496950,160.6,258.17,258.1,11.68615999]
[1732215497453,164.4734,258.17,258.08,11.68615999]
[1732215497969,23.776884,258.16,258.08,11.68615999]
[1732215498170,23.776884,258.16,258.1,11.68615999]
[1732215498674,23.776884,258.16,258.02,20.0]
[1732215498862,160.6,258.15,258.09,11.68615999]
[1732215499051,23.776884,258.13,258.09,11.68615999]
[1732215499870,23.776884,258.13,258.09,11.01715999]
[1732215503056,160.6,258.14,258.12,11.68615999]
[1732215504054,23.776884,258.2,258.12,11.68615999]
[1732215504253,39.33604399,258.2,258.12,11.68615999]
[1732215507062,23.776884,258.18,258.12,11.68615999]
[1732215507256,23.776884,258.18,258.05,11.68615999]
[1732215507257,160.6,258.19,258.14,11.68615999]
[1732215507458,160.6,258.19,258.16,11.68615999]
[1732215507782,15.55855999,258.24,258.16,11.68615999]
[1732215507783,3.8725,258.23,258.16,11.68615999]
[1732215508182,3.8723,258.24,258.16,11.68615999]
[1732215508388,3.8723,258.24,258.18,11.68615999]
[1732215508760,3.8723,258.24,258.16,11.68615999]
[1732215509161,15.55845999,258.24,258.16,11.68615999]
[1732215509356,11.68615999,258.22,258.14,11.68615999]
[1732215509560,23.776884,258.21,258.12,11.68615999]
[1732215510460,27.649784,258.21,258.12,11.68615999]
[1732215510860,11.68615999,258.2,258.12,11.68615999]
[1732215511082,23.776884,258.19,258.12,11.68615999]
[1732215511382,23.776884,258.19,258.06,33.0755]
[1732215511383,23.776884,258.17,258.1,11.68615999]
[1732215511682,160.6,258.16,258.1,11.68615999]
[1732215511980,23.776884,258.15,258.1,11.68615999]
[1732215512379,23.776884,258.15,258.08,11.68615999]
[1732215512558,23.776884,258.15,257.99,14.8699]
[1732215512559,23.776884,258.13,258.04,11.68615999]
[1732215512872,23.776884,258.11,258.04,11.68615999]
[1732215513671,23.776884,258.09,258.02,22.53765999]
[1732215513878,23.776884,258.09,258.02,19.43715999]
[1732215514466,23.776884,258.09,258.02,22.53765999]
[1732215514786,23.776884,258.09,258.04,11.68615999]
[1732215515473,160.6,258.1,258.04,11.68615999]
[1732215515673,160.6,258.1,258.08,11.68615999]
[1732215516607,160.6,258.1,258.06,14.78605999]
[1732215516763,160.6,258.1,258.06,11.68615999]
[1732215516764,164.4744,258.1,258.06,11.68615999]
[1732215516964,23.776884,258.09,258.04,11.68615999]
[1732215517184,23.776884,258.09,258.02,19.43715999]
[1732215517368,23.776884,258.09,258.02,22.53765999]
[1732215517571,160.6,258.08,258.02,22.53765999]
[1732215518589,160.6,258.09,258.06,11.68615999]
[1732215519088,23.776884,258.08,258.04,11.68615999]
[1732215520590,23.776884,258.08,258.02,22.53765999]
[1732215520766,3.8749,258.07,258.02,11.68615999]
[1732215520967,160.6,258.06,258.02,11.68615999]
[1732215521774,160.6,258.06,258.01,9.05646629]
[1732215521985,23.776884,258.04,258.01,9.05646629]
[1732215522668,23.776884,258.04,257.95,11.68615999]
[1732215522669,23.776884,258.02,257.95,11.68615999]
[1732215522869,160.6,258.01,257.95,11.68615999]
[1732215523183,184.376884,258.0,257.93,14.78765999]
[1732215523777,160.6,257.99,257.93,14.78765999]
[1732215524186,160.6,257.98,257.93,10.8555]
[1732215524392,160.6,257.98,257.94,4.99062677]
[1732215524595,160.6,258.09,257.94,4.99062677]
[1732215524802,160.6,258.08,258.03,11.68615999]
[1732215525096,160.6,258.07,258.03,11.68615999]
[1732215526380,160.6,258.07,258.03,14.78645999]
[1732215526568,3.8742,258.12,258.05,11.68615999]
[1732215526785,3.8742,258.12,258.03,10.8513]
[1732215526786,11.68615999,258.19,258.09,11.68615999]
[1732215526968,11.68615999,258.19,258.03,10.8513]
[1732215526969,160.6,258.15,258.11,11.68615999]
[1732215527392,160.6,258.15,258.05,11.68615999]
[1732215527393,160.6,258.15,258.13,11.68615999]
[1732215527787,160.6,258.14,258.13,11.68615999]
[1732215527983,160.6,258.2,258.14,3.099]
[1732215529097,160.6,258.21,258.17,11.68615999]
[1732215529301,11.68615999,258.26,258.17,11.68615999]
[1732215529302,3.8723,258.25,258.17,11.68615999]
[1732215531101,23.776884,258.24,258.17,11.68615999]
[1732215531881,23.776884,258.24,258.19,11.68615999]
[1732215533382,160.6,258.23,258.21,11.68615999]
[1732215535091,160.6,258.23,258.19,11.68615999]
[1732215535595,216.06304399,258.22,258.09,9.4927]
[1732215535801,23.776884,258.17,258.09,11.68615999]
[1732215536010,11.68615999,258.14,258.05,11.68615999]
[1732215536314,184.376884,258.13,258.05,11.68615999]
[1732215537192,23.776884,258.11,258.05,11.68615999]
[1732215538289,23.776884,258.11,258.07,11.68615999]
[1732215538489,23.776884,258.11,258.05,11.68615999]
[1732215538800,23.776884,258.11,258.05,18.70824887]
[1732215539790,160.6,258.2,258.09,18.70824887]
[1732215539992,160.6,258.19,258.15,18.70824887]
[1732215540202,160.6,258.18,258.15,18.70824887]
[1732215541313,160.6,258.18,258.06,6.7813]
[1732215541314,160.6,258.22,258.17,18.70824887]
[1732215541517,160.6,258.22,258.19,18.70824887]
[1732215541709,160.6,258.25,258.21,18.70824887]
[1732215542014,160.6,258.24,258.21,21.41914887]
[1732215542710,160.6,258.24,258.21,28.19654887]
[1732215544093,160.6,258.24,258.21,6.7774]
[1732215545209,160.6,258.24,258.23,18.70824887]
[1732215545591,160.6,258.3,258.23,18.70824887]
[1732215545791,160.6,258.3,258.26,18.70824887]
[1732215546205,160.6,258.3,258.24,18.70824887]
[1732215546796,23.776884,258.29,258.24,18.70824887]
[1732215547198,160.6,258.3,258.24,21.41884887]
[1732215547404,160.6,258.3,258.26,18.70824887]
[1732215548899,164.4715,258.3,258.24,25.48484887]
[1732215549099,160.6,258.29,258.24,25.48484887]
[1732215549309,160.6,258.29,258.24,18.70824887]
[1732215549518,160.6,258.29,258.22,18.70824887]
[1732215549519,164.4716,258.29,258.22,18.70824887]
[1732215550021,160.6,258.29,258.22,18.70824887]
[1732215550826,160.6,258.29,258.24,18.70824887]
[1732215551430,160.6,258.29,258.23,2.7106]
[1732215551627,14.96617387,258.35,258.19,6.7777]
[1732215551628,18.70824887,258.26,258.19,6.7777]
[1732215551802,23.776884,258.25,258.19,6.7777]
[1732215552324,23.776884,258.27,258.2,18.70824887]
[1732215552797,23.776884,258.27,258.19,9.4888]
[1732215552798,23.776884,258.27,258.23,18.70824887]
[1732215552997,160.6,258.28,258.25,18.70824887]
[1732215553197,160.6,258.31,258.25,18.70824887]
[1732215553421,160.6,258.3,258.27,18.70824887]
[1732215554218,160.6,258.3,258.23,18.70824887]
[1732215554401,23.776884,258.29,258.23,18.70824887]
[1732215555003,23.776884,258.27,258.2,9.4886]
[1732215555500,23.776884,258.27,258.2,6.7776]
[1732215555501,179.30824887,258.26,258.2,6.7776]
[1732215555829,23.776884,258.25,258.18,21.41944887]
[1732215556032,160.6,258.24,258.18,21.41944887]
[1732215556215,160.6,258.24,258.18,28.19764887]
[1732215557108,160.6,258.24,258.23,18.70824887]
[1732215557617,160.6,258.24,258.23,21.41894887]
[1732215560605,160.6,258.32,258.24,20.0]
[1732215560804,160.6,258.31,258.29,11.66982959]
[1732215561815,160.6,258.37,258.3,2.71]
[1732215562008,162.78898447,258.41,258.33,11.66982959]
[1732215562213,160.6,258.41,258.33,11.66982959]
[1732215562405,160.6,258.41,258.35,11.66982959]
[1732215562606,160.6,258.41,258.38,18.66087388]
[1732215562823,160.6,258.4,258.36,18.66087388]
[1732215563131,160.6,258.4,258.32,18.66087388]
[1732215563331,160.6,258.39,258.32,18.66087388]
[1732215563633,23.776884,258.38,258.32,18.66087388]
[1732215563824,23.776884,258.38,258.33,2.7097]
[1732215564529,160.6,258.39,258.36,18.66087388]
[1732215566042,160.6,258.39,258.37,3.0963]
[1732215566727,160.6,258.39,258.35,3.0964]
[1732215567038,160.6,258.39,258.38,18.66087388]
[1732215567228,23.776884,258.45,258.38,18.66087388]
[1732215567539,160.6,258.44,258.38,18.66087388]
[1732215568043,160.6,258.44,258.39,3.096]
[1732215568236,160.6,258.47,258.42,18.66087388]
[1732215568533,160.6,258.47,258.44,18.66087388]
[1732215568733,160.6,258.46,258.44,18.66087388]
[1732215569442,160.6,258.46,258.42,18.66087388]
[1732215569622,160.6,258.46,258.39,10.8362]
[1732215569623,23.776884,258.45,258.4,18.66087388]
[1732215570652,23.776884,258.45,258.4,21.75667388]
[1732215573349,160.6,258.44,258.4,21.75667388]
[1732215573731,160.6,258.44,258.42,18.66087388]
[1732215575222,160.6,258.44,258.4,18.66087388]
[1732215575621,164.4694,258.44,258.38,18.66087388]
[1732215575870,164.4694,258.44,258.36,18.66087388]
[1732215575871,184.376884,258.43,258.36,18.66087388]
[1732215576342,160.6,258.42,258.34,18.66087388]
[1732215576638,23.776884,258.38,258.31,9.32746044]
[1732215576846,23.776884,258.38,258.28,7.7434]
[1732215576847,23.776884,258.36,258.28,29.50157388]
[1732215577027,23.776884,258.34,258.26,18.66087388]
[1732215577347,23.776884,258.32,258.24,21.75867388]
[1732215577520,18.66087388,258.29,258.2,21.75917388]
[1732215577724,23.776884,258.28,258.2,21.75917388]
[1732215578535,23.776884,258.26,258.19,7.7462]
[1732215578844,23.776884,258.21,258.13,10.847]
[1732215579024,18.66087388,258.22,258.13,10.847]
[1732215579025,23.776884,258.19,258.13,10.847]
[1732215579348,23.776884,258.19,258.13,29.50787388]
[1732215579522,23.776884,258.19,258.11,18.66087388]
[1732215579728,27.650384,258.17,258.09,18.66087388]
[1732215579948,18.66087388,258.16,258.09,18.66087388]
[1732215580134,184.376884,258.15,258.09,18.66087388]
[1732215580341,160.6,258.14,258.09,18.66087388]
[1732215580536,23.776884,258.07,258.0,3.1006]
[1732215580856,23.776884,258.05,258.0,3.1006]
[1732215581224,23.776884,258.05,257.98,21.76187388]
[1732215582641,23.776884,258.05,257.98,29.51437388]
[1732215583347,23.776884,258.03,257.98,29.51437388]
[1732215583546,23.776884,258.03,257.98,7.7525]
[1732215583547,160.6,258.02,257.98,7.7525]
[1732215583739,160.6,258.01,257.95,18.66087388]
[1732215583949,160.6,258.0,257.95,18.66087388]
[1732215584242,160.6,258.0,257.94,3.1014]
[1732215584455,160.6,257.99,257.94,3.1014]
[1732215585243,160.6,257.99,257.85,46.024]
[1732215585443,160.6,257.98,257.91,18.66087388]
[1732215585658,160.6,257.97,257.91,18.66087388]
[1732215585835,160.6,257.97,257.93,18.66087388]
[1732215586423,160.6,257.97,257.95,18.66087388]
[1732215586630,160.6,257.97,257.95,17.66836081]
[1732215587153,160.6,257.97,257.93,21.76237388]
[1732215587731,160.6,257.97,257.93,29.51637388]
[1732215589457,160.6,257.96,257.93,10.8555]
[1732215589668,160.6,258.07,257.96,23.776884]
[1732215589956,160.6,258.12,258.06,18.66087388]
[1732215590332,160.6,258.11,258.06,18.66087388]
[1732215591462,160.6,258.17,258.1,18.66087388]
[1732215591643,160.6,258.17,258.16,18.66087388]
[1732215591845,13.1535,258.19,258.16,18.66087388]
[1732215593137,13.1535,258.19,258.14,18.66087388]
[1732215593860,13.1535,258.19,258.1,7.7486]
[1732215593861,13.1535,258.19,258.16,18.66087388]
[1732215594760,160.6,258.18,258.16,18.66087388]
[1732215595835,160.6,258.17,258.16,18.66087388]
[1732215596065,17.0267,258.19,258.16,18.66087388]
[1732215596235,28.33927388,258.31,258.18,18.66087388]